[Event "Titled Tuesday Blitz May 03 Early 2022"]
[White "Kulkarni, Rakesh"]
[Black "Shimanov, Aleksandr"]
[WhiteFideId "5037077"]
[BlackFideId "4198603"]
[WhiteElo "2246"]
[BlackElo "2636"]
[Result "0-1"]
[Round "01"]
[TimeControl "180+1"]
[Date "2022.05.03"]
[WhiteClock "0:00:02"]
[BlackClock "0:00:10"]

1. e4 {[%clk 0:03:00]}  e6 {[%clk 0:02:56]} 2. d4 {[%clk 0:03:00]}  d5 {[%clk 0:02:56]} 3. Bd3 {[%clk 0:03:01]}  Nc6 {[%clk 0:02:51]} 4. Nf3 {[%clk 0:02:54]}  dxe4 {[%clk 0:02:46]} 5. Bxe4 {[%clk 0:02:54]}  Nf6 {[%clk 0:02:47]} 6. Bxc6+ {[%clk 0:02:51]}  bxc6 {[%clk 0:02:48]} 7. O-O {[%clk 0:02:52]}  c5 {[%clk 0:02:40]} 8. Be3 {[%clk 0:02:40]}  cxd4 {[%clk 0:02:38]} 9. Nxd4 {[%clk 0:02:41]}  Bb7 {[%clk 0:02:36]} 10. Qe2 {[%clk 0:02:33]}  Qd5 {[%clk 0:02:27]} 11. f3 {[%clk 0:02:09]}  Bd6 {[%clk 0:02:14]} 12. Nc3 {[%clk 0:02:07]}  Qh5 {[%clk 0:02:13]} 13. g4 {[%clk 0:01:53]}  Qh3 {[%clk 0:02:03]} 14. Ndb5 {[%clk 0:01:26]}  O-O {[%clk 0:01:54]} 15. Nxd6 {[%clk 0:01:07]}  cxd6 {[%clk 0:01:55]} 16. Rad1 {[%clk 0:01:08]}  d5 {[%clk 0:01:35]} 17. Nb5 {[%clk 0:00:06]}  e5 {[%clk 0:01:24]} 18. Nd6 {[%clk 0:00:05]}  Bc6 {[%clk 0:01:22]} 19. Bg5 {[%clk 0:00:06]}  Nd7 {[%clk 0:01:03]} 20. Nf5 {[%clk 0:00:05]}  Kh8 {[%clk 0:00:53]} 21. Ne7 {[%clk 0:00:04]}  Bb7 {[%clk 0:00:52]} 22. Nxd5 {[%clk 0:00:03]}  f6 {[%clk 0:00:47]} 23. Bc1 {[%clk 0:00:03]}  f5 {[%clk 0:00:47]} 24. Qg2 {[%clk 0:00:03]}  Qxg2+ {[%clk 0:00:32]} 25. Kxg2 {[%clk 0:00:04]}  fxg4 {[%clk 0:00:33]} 26. fxg4 {[%clk 0:00:02]}  Nb6 {[%clk 0:00:33]} 27. c4 {[%clk 0:00:02]}  Nxc4 {[%clk 0:00:33]} 28. Rxf8+ {[%clk 0:00:02]}  Rxf8 {[%clk 0:00:34]} 29. Kg3 {[%clk 0:00:03]}  Nd6 {[%clk 0:00:32]} 30. Ne7 {[%clk 0:00:03]}  Ne4+ {[%clk 0:00:32]} 31. Kh4 {[%clk 0:00:03]}  Re8 {[%clk 0:00:20]} 32. Rd7 {[%clk 0:00:03]}  Ba8 {[%clk 0:00:18]} 33. Be3 {[%clk 0:00:03]}  h6 {[%clk 0:00:16]} 34. g5 {[%clk 0:00:04]}  hxg5+ {[%clk 0:00:15]} 35. Bxg5 {[%clk 0:00:05]}  a5 {[%clk 0:00:15]} 36. Ra7 {[%clk 0:00:04]}  a4 {[%clk 0:00:13]} 37. Rxa4 {[%clk 0:00:03]}  Nc5 {[%clk 0:00:10]} 38. Ra7 {[%clk 0:00:03]}  Nd3 {[%clk 0:00:10]} 39. b3 {[%clk 0:00:03]}  Be4 {[%clk 0:00:10]} 40. Be3 {[%clk 0:00:02]}  Rf8 {[%clk 0:00:09]} 41. Kg3 {[%clk 0:00:02]}  Rf3+ {[%clk 0:00:09]} 42. Kh4 {[%clk 0:00:02]}  Rxe3 {[%clk 0:00:10]} 43. Ra8+ {[%clk 0:00:02]}  Kh7 {[%clk 0:00:10]} 44. Ra5 {[%clk 0:00:03]}  Nf2 {[%clk 0:00:09]} 45. Nf5 {[%clk 0:00:01]}  Bxf5 {[%clk 0:00:09]} 46. h3 {[%clk 0:00:01]}  Rxh3+ {[%clk 0:00:08]} 47. Kg5 {[%clk 0:00:02]}  Bg6 {[%clk 0:00:09]} 48. Rxe5 {[%clk 0:00:01]}  Rh5+ {[%clk 0:00:09]} 49. Kf4 {[%clk 0:00:02]}  Nd3+ {[%clk 0:00:10]} 50. Kg4 {[%clk 0:00:02]}  Rxe5 {[%clk 0:00:10]} 0-1


[Site "https://www.chess.com"]

[Event "Titled Tuesday Blitz May 03 Early 2022"]
[White "Kuznetsov, Mikhail"]
[Black "Sargsyan, Anna M."]
[WhiteFideId "4117190"]
[BlackFideId "13308130"]
[WhiteElo "1981"]
[BlackElo "2271"]
[Result "0-1"]
[Round "01"]
[TimeControl "180+1"]
[Date "2022.05.03"]
[WhiteClock "0:00:04"]
[BlackClock "0:00:41"]

1. Nf3 {[%clk 0:02:58]}  d5 {[%clk 0:02:59]} 2. g3 {[%clk 0:02:57]}  Nf6 {[%clk 0:02:59]} 3. Bg2 {[%clk 0:02:54]}  Bf5 {[%clk 0:02:59]} 4. O-O {[%clk 0:02:54]}  e6 {[%clk 0:02:59]} 5. d4 {[%clk 0:02:51]}  Be7 {[%clk 0:02:58]} 6. c4 {[%clk 0:02:50]}  c6 {[%clk 0:02:56]} 7. Nc3 {[%clk 0:02:46]}  O-O {[%clk 0:02:54]} 8. Qb3 {[%clk 0:02:45]}  Qb6 {[%clk 0:02:51]} 9. c5 {[%clk 0:02:42]}  Qa6 {[%clk 0:02:51]} 10. Qd1 {[%clk 0:02:38]}  b6 {[%clk 0:02:51]} 11. b4 {[%clk 0:02:33]}  Qc4 {[%clk 0:02:44]} 12. Qb3 {[%clk 0:02:32]}  a5 {[%clk 0:02:40]} 13. Ne5 {[%clk 0:02:07]}  Qxd4 {[%clk 0:02:29]} 14. Nf3 {[%clk 0:01:29]}  Qxb4 {[%clk 0:02:27]} 15. cxb6 {[%clk 0:01:27]}  Nbd7 {[%clk 0:02:23]} 16. Be3 {[%clk 0:01:11]}  c5 {[%clk 0:02:20]} 17. Nh4 {[%clk 0:01:02]}  Bg4 {[%clk 0:02:06]} 18. h3 {[%clk 0:01:01]}  Bh5 {[%clk 0:02:06]} 19. g4 {[%clk 0:01:00]}  Rab8 {[%clk 0:01:55]} 20. gxh5 {[%clk 0:00:39]}  Qxh4 {[%clk 0:01:54]} 21. h6 {[%clk 0:00:38]}  Rxb6 {[%clk 0:01:41]} 22. Qa4 {[%clk 0:00:30]}  d4 {[%clk 0:01:34]} 23. hxg7 {[%clk 0:00:23]}  Kxg7 {[%clk 0:01:33]} 24. Nb5 {[%clk 0:00:16]}  Rxb5 {[%clk 0:01:31]} 25. Qxb5 {[%clk 0:00:15]}  dxe3 {[%clk 0:01:31]} 26. fxe3 {[%clk 0:00:15]}  Ne5 {[%clk 0:01:18]} 27. Rf4 {[%clk 0:00:10]}  Qg3 {[%clk 0:01:17]} 28. Qb2 {[%clk 0:00:08]}  Qxe3+ {[%clk 0:01:16]} 29. Rf2 {[%clk 0:00:08]}  Rd8 {[%clk 0:01:00]} 30. Rf1 {[%clk 0:00:08]}  c4 {[%clk 0:00:58]} 31. a4 {[%clk 0:00:05]}  c3 {[%clk 0:00:58]} 32. Qb3 {[%clk 0:00:05]}  Bc5 {[%clk 0:00:57]} 33. Kh1 {[%clk 0:00:04]}  Nh5 {[%clk 0:00:41]} 0-1


[Site "https://www.chess.com"]

[Event "Titled Tuesday Blitz May 03 Early 2022"]
[White "Le Ruyet, Leopold"]
[Black "Schmakel, Sam"]
[WhiteFideId "645923"]
[BlackFideId "2039311"]
[WhiteElo "2451"]
[BlackElo "2793"]
[Result "0-1"]
[Round "01"]
[TimeControl "180+1"]
[Date "2022.05.03"]
[WhiteClock "0:00:03"]
[BlackClock "0:00:37"]

1. e4 {[%clk 0:02:58]}  e5 {[%clk 0:02:59]} 2. Nf3 {[%clk 0:02:57]}  Nc6 {[%clk 0:02:59]} 3. Bc4 {[%clk 0:02:57]}  Bc5 {[%clk 0:02:58]} 4. Nc3 {[%clk 0:02:55]}  h6 {[%clk 0:02:55]} 5. d3 {[%clk 0:02:54]}  d6 {[%clk 0:02:50]} 6. Na4 {[%clk 0:02:53]}  Bb6 {[%clk 0:02:46]} 7. c3 {[%clk 0:02:47]}  Nf6 {[%clk 0:02:43]} 8. h3 {[%clk 0:02:41]}  O-O {[%clk 0:02:42]} 9. Nxb6 {[%clk 0:02:37]}  axb6 {[%clk 0:02:41]} 10. Be3 {[%clk 0:02:38]}  d5 {[%clk 0:02:30]} 11. exd5 {[%clk 0:02:27]}  Nxd5 {[%clk 0:02:31]} 12. O-O {[%clk 0:01:29]}  Bf5 {[%clk 0:02:27]} 13. Re1 {[%clk 0:01:26]}  Re8 {[%clk 0:02:17]} 14. Qd2 {[%clk 0:01:19]}  Qd6 {[%clk 0:02:05]} 15. Rad1 {[%clk 0:00:54]}  Nce7 {[%clk 0:01:56]} 16. d4 {[%clk 0:00:49]}  e4 {[%clk 0:01:56]} 17. Ne5 {[%clk 0:00:45]}  c6 {[%clk 0:01:49]} 18. Bf4 {[%clk 0:00:37]}  b5 {[%clk 0:01:30]} 19. Bb3 {[%clk 0:00:34]}  Qd8 {[%clk 0:01:16]} 20. Bxh6 {[%clk 0:00:27]}  gxh6 {[%clk 0:00:53]} 21. Qxh6 {[%clk 0:00:28]}  Ng6 {[%clk 0:00:53]} 22. Nxg6 {[%clk 0:00:17]}  Bxg6 {[%clk 0:00:54]} 23. Bxd5 {[%clk 0:00:15]}  Qxd5 {[%clk 0:00:53]} 24. Re3 {[%clk 0:00:15]}  Qh5 {[%clk 0:00:46]} 25. Qf4 {[%clk 0:00:15]}  Qxd1+ {[%clk 0:00:44]} 26. Kh2 {[%clk 0:00:10]}  Rxa2 {[%clk 0:00:43]} 27. Rg3 {[%clk 0:00:10]}  Ra1 {[%clk 0:00:38]} 28. Rg5 {[%clk 0:00:05]}  e3 {[%clk 0:00:36]} 29. Qf6 {[%clk 0:00:04]}  Qg1+ {[%clk 0:00:35]} 30. Kg3 {[%clk 0:00:03]}  Qxf2+ {[%clk 0:00:36]} 31. Qxf2 {[%clk 0:00:02]}  exf2 {[%clk 0:00:36]} 32. Kxf2 {[%clk 0:00:03]}  Ra2 {[%clk 0:00:37]} 33. Kg3 {[%clk 0:00:03]}  Rxb2 {[%clk 0:00:37]} 34. Kh4 {[%clk 0:00:03]}  Re4+ {[%clk 0:00:37]} 35. g4 {[%clk 0:00:03]}  Re3 {[%clk 0:00:37]} 36. Re5 {[%clk 0:00:03]}  Rxe5 {[%clk 0:00:37]} 0-1


[Site "https://www.chess.com"]

[Event "Titled Tuesday Blitz May 03 Early 2022"]
[White "Levitskiy, Andrey"]
[Black "Subaste, Arman"]
[WhiteFideId "14132885"]
[BlackFideId "5221080"]
[WhiteElo "2301"]
[BlackElo "1856"]
[Result "1-0"]
[Round "01"]
[TimeControl "180+1"]
[Date "2022.05.03"]
[WhiteClock "0:00:55"]
[BlackClock "0:02:03"]

1. e4 {[%clk 0:02:47]}  e5 {[%clk 0:02:57]} 2. Nf3 {[%clk 0:02:47]}  Nf6 {[%clk 0:02:58]} 3. Nxe5 {[%clk 0:02:45]}  d6 {[%clk 0:02:57]} 4. Nd3 {[%clk 0:02:46]}  Nxe4 {[%clk 0:02:57]} 5. Qe2 {[%clk 0:02:46]}  Qe7 {[%clk 0:02:52]} 6. Nf4 {[%clk 0:02:46]}  Nf6 {[%clk 0:02:50]} 7. f3 {[%clk 0:02:45]}  d5 {[%clk 0:02:48]} 8. d4 {[%clk 0:02:45]}  Qxe2+ {[%clk 0:02:45]} 9. Bxe2 {[%clk 0:02:45]}  Bd6 {[%clk 0:02:46]} 10. Kf2 {[%clk 0:02:43]}  O-O {[%clk 0:02:45]} 11. h4 {[%clk 0:02:40]}  c5 {[%clk 0:02:45]} 12. Nc3 {[%clk 0:02:17]}  cxd4 {[%clk 0:02:28]} 13. Ncxd5 {[%clk 0:02:11]}  Nxd5 {[%clk 0:02:29]} 14. Nxd5 {[%clk 0:02:10]}  Nc6 {[%clk 0:02:28]} 15. Bf4 {[%clk 0:02:07]}  Bc5 {[%clk 0:02:27]} 16. Bd3 {[%clk 0:01:59]}  Be6 {[%clk 0:02:25]} 17. Nc7 {[%clk 0:01:59]}  Rad8 {[%clk 0:02:25]} 18. Nxe6 {[%clk 0:01:55]}  fxe6 {[%clk 0:02:26]} 19. Bg5 {[%clk 0:01:56]}  Be7 {[%clk 0:02:18]} 20. Bc4 {[%clk 0:01:50]}  Kf7 {[%clk 0:02:18]} 21. Rae1 {[%clk 0:01:46]}  Rd6 {[%clk 0:02:18]} 22. Bf4 {[%clk 0:01:45]}  Rdd8 {[%clk 0:02:13]} 23. Rxe6 {[%clk 0:01:24]}  Ke8 {[%clk 0:02:12]} 24. Bg5 {[%clk 0:01:23]}  Kd7 {[%clk 0:02:12]} 25. Bxe7 {[%clk 0:01:14]}  Nxe7 {[%clk 0:02:13]} 26. Rhe1 {[%clk 0:01:14]}  Nc6 {[%clk 0:02:13]} 27. Bb5 {[%clk 0:01:13]}  Rde8 {[%clk 0:02:12]} 28. Rxe8 {[%clk 0:01:09]}  Rxe8 {[%clk 0:02:13]} 29. Rxe8 {[%clk 0:01:09]}  Kxe8 {[%clk 0:02:13]} 30. Ke2 {[%clk 0:01:07]}  Ke7 {[%clk 0:02:12]} 31. Bxc6 {[%clk 0:01:06]}  bxc6 {[%clk 0:02:12]} 32. Kd3 {[%clk 0:01:07]}  c5 {[%clk 0:02:13]} 33. g4 {[%clk 0:01:04]}  Kd6 {[%clk 0:02:10]} 34. Ke4 {[%clk 0:01:03]}  a5 {[%clk 0:02:10]} 35. f4 {[%clk 0:00:59]}  Ke6 {[%clk 0:02:10]} 36. f5+ {[%clk 0:00:58]}  Kd6 {[%clk 0:02:08]} 37. g5 {[%clk 0:00:59]}  a4 {[%clk 0:02:08]} 38. h5 {[%clk 0:00:55]}  a3 {[%clk 0:02:03]} 39. bxa3 {[%clk 0:00:55]} 1-0


[Site "https://www.chess.com"]

[Event "Titled Tuesday Blitz May 03 Early 2022"]
[White "Matinian, Nikita"]
[Black "Shtyka, Sergey"]
[WhiteFideId "24129100"]
[BlackFideId "4138465"]
[WhiteElo "2754"]
[BlackElo "2443"]
[Result "1-0"]
[Round "01"]
[TimeControl "180+1"]
[Date "2022.05.03"]
[WhiteClock "0:02:08"]
[BlackClock "0:00:06"]

1. e4 {[%clk 0:03:00]}  c5 {[%clk 0:02:58]} 2. Nf3 {[%clk 0:02:59]}  d6 {[%clk 0:02:58]} 3. d4 {[%clk 0:02:59]}  cxd4 {[%clk 0:02:57]} 4. Nxd4 {[%clk 0:02:59]}  Nf6 {[%clk 0:02:58]} 5. Nc3 {[%clk 0:02:59]}  g6 {[%clk 0:02:58]} 6. Be3 {[%clk 0:02:58]}  Bg7 {[%clk 0:02:58]} 7. Be2 {[%clk 0:02:58]}  O-O {[%clk 0:02:58]} 8. Qd2 {[%clk 0:02:59]}  Nc6 {[%clk 0:02:57]} 9. O-O-O {[%clk 0:02:57]}  d5 {[%clk 0:02:47]} 10. Nxc6 {[%clk 0:02:53]}  bxc6 {[%clk 0:02:47]} 11. exd5 {[%clk 0:02:53]}  cxd5 {[%clk 0:02:30]} 12. Nxd5 {[%clk 0:02:54]}  Nxd5 {[%clk 0:02:29]} 13. Qxd5 {[%clk 0:02:54]}  Qc7 {[%clk 0:02:24]} 14. Qc5 {[%clk 0:02:51]}  Qb7 {[%clk 0:02:21]} 15. Qa3 {[%clk 0:02:50]}  Bf5 {[%clk 0:02:10]} 16. Bf3 {[%clk 0:02:44]}  Be4 {[%clk 0:02:10]} 17. Bxe4 {[%clk 0:02:44]}  Qxe4 {[%clk 0:02:09]} 18. f3 {[%clk 0:02:43]}  Qb7 {[%clk 0:01:58]} 19. Bd4 {[%clk 0:02:42]}  Bxd4 {[%clk 0:01:47]} 20. Rxd4 {[%clk 0:02:43]}  Rfd8 {[%clk 0:01:39]} 21. Rhd1 {[%clk 0:02:38]}  Rxd4 {[%clk 0:01:38]} 22. Rxd4 {[%clk 0:02:39]}  Qb6 {[%clk 0:01:30]} 23. Qb4 {[%clk 0:02:32]}  Qe6 {[%clk 0:01:05]} 24. b3 {[%clk 0:02:26]}  Qe2 {[%clk 0:00:59]} 25. Qd2 {[%clk 0:02:24]}  Qf1+ {[%clk 0:00:57]} 26. Kb2 {[%clk 0:02:25]}  Rc8 {[%clk 0:00:54]} 27. Rd8+ {[%clk 0:02:24]}  Rxd8 {[%clk 0:00:54]} 28. Qxd8+ {[%clk 0:02:24]}  Kg7 {[%clk 0:00:54]} 29. Qd4+ {[%clk 0:02:25]}  Kg8 {[%clk 0:00:53]} 30. Qxa7 {[%clk 0:02:17]}  Qxg2 {[%clk 0:00:51]} 31. a4 {[%clk 0:02:18]}  Qxh2 {[%clk 0:00:46]} 32. a5 {[%clk 0:02:18]}  Qe5+ {[%clk 0:00:45]} 33. c3 {[%clk 0:02:18]}  h5 {[%clk 0:00:42]} 34. a6 {[%clk 0:02:19]}  h4 {[%clk 0:00:40]} 35. f4 {[%clk 0:02:18]}  Qe2+ {[%clk 0:00:36]} 36. Ka3 {[%clk 0:02:18]}  h3 {[%clk 0:00:36]} 37. Qb7 {[%clk 0:02:15]}  Qg2 {[%clk 0:00:26]} 38. Qb8+ {[%clk 0:02:08]}  Kh7 {[%clk 0:00:24]} 39. a7 {[%clk 0:02:09]}  h2 {[%clk 0:00:06]} 40. a8=Q {[%clk 0:02:09]}  h1=Q {[%clk 0:00:06]} 41. Qh8# {[%clk 0:02:08]} 1-0


[Site "https://www.chess.com"]

[Event "Titled Tuesday Blitz May 03 Early 2022"]
[White "Meshkovs, Nikita"]
[Black "Mortazavi, Ali"]
[WhiteFideId "11602740"]
[BlackFideId "401323"]
[WhiteElo "2785"]
[BlackElo "2446"]
[Result "1-0"]
[Round "01"]
[TimeControl "180+1"]
[Date "2022.05.03"]
[WhiteClock "0:00:16"]
[BlackClock "0:00:02"]

1. Nf3 {[%clk 0:02:59]}  Nf6 {[%clk 0:02:59]} 2. d4 {[%clk 0:02:58]}  g6 {[%clk 0:02:59]} 3. g3 {[%clk 0:02:59]}  Bg7 {[%clk 0:03:00]} 4. Bg2 {[%clk 0:02:59]}  O-O {[%clk 0:03:01]} 5. O-O {[%clk 0:02:59]}  d6 {[%clk 0:03:02]} 6. Re1 {[%clk 0:02:59]}  d5 {[%clk 0:02:52]} 7. a4 {[%clk 0:02:49]}  c5 {[%clk 0:02:43]} 8. dxc5 {[%clk 0:02:48]}  Na6 {[%clk 0:02:42]} 9. a5 {[%clk 0:02:42]}  Nxc5 {[%clk 0:02:40]} 10. Nc3 {[%clk 0:02:42]}  a6 {[%clk 0:02:25]} 11. Be3 {[%clk 0:02:38]}  Nce4 {[%clk 0:02:19]} 12. Nxe4 {[%clk 0:02:23]}  Nxe4 {[%clk 0:02:18]} 13. Bd4 {[%clk 0:02:11]}  f6 {[%clk 0:02:04]} 14. Nd2 {[%clk 0:01:50]}  Nxd2 {[%clk 0:01:49]} 15. Qxd2 {[%clk 0:01:51]}  Be6 {[%clk 0:01:43]} 16. Bb6 {[%clk 0:01:41]}  Qd7 {[%clk 0:01:40]} 17. e4 {[%clk 0:01:41]}  dxe4 {[%clk 0:01:26]} 18. Qxd7 {[%clk 0:01:42]}  Bxd7 {[%clk 0:01:27]} 19. Bxe4 {[%clk 0:01:42]}  Rac8 {[%clk 0:01:05]} 20. Bxb7 {[%clk 0:01:22]}  Rxc2 {[%clk 0:01:04]} 21. Bxa6 {[%clk 0:01:18]}  e5 {[%clk 0:00:52]} 22. b3 {[%clk 0:01:06]}  f5 {[%clk 0:00:50]} 23. Bc4+ {[%clk 0:01:03]}  Kh8 {[%clk 0:00:50]} 24. a6 {[%clk 0:01:04]}  Bc6 {[%clk 0:00:50]} 25. Rec1 {[%clk 0:01:02]}  Rb2 {[%clk 0:00:41]} 26. Be6 {[%clk 0:00:57]}  Ba8 {[%clk 0:00:37]} 27. Rc7 {[%clk 0:00:56]}  Re8 {[%clk 0:00:29]} 28. Bc4 {[%clk 0:00:49]}  f4 {[%clk 0:00:21]} 29. Rd1 {[%clk 0:00:44]}  fxg3 {[%clk 0:00:15]} 30. hxg3 {[%clk 0:00:44]}  Bh6 {[%clk 0:00:11]} 31. a7 {[%clk 0:00:29]}  Bd2 {[%clk 0:00:11]} 32. Rd7 {[%clk 0:00:27]}  Bg5 {[%clk 0:00:07]} 33. Bd8 {[%clk 0:00:16]}  Bxd8 {[%clk 0:00:01]} 34. Rxd8 {[%clk 0:00:16]}  Rxd8 {[%clk 0:00:01]} 35. Rxd8+ {[%clk 0:00:16]}  Kg7 {[%clk 0:00:02]} 36. Rxa8 {[%clk 0:00:16]} 1-0


[Site "https://www.chess.com"]

[Event "Titled Tuesday Blitz May 03 Early 2022"]
[White "Mikhailovsky, Vladimir"]
[Black "Murtazin, Bulat"]
[WhiteFideId "34105414"]
[BlackFideId "24151351"]
[WhiteElo "2349"]
[BlackElo "2329"]
[Result "1-0"]
[Round "01"]
[TimeControl "180+1"]
[Date "2022.05.03"]
[WhiteClock "0:00:27"]
[BlackClock "0:00:01"]

1. e4 {[%clk 0:03:00]}  c6 {[%clk 0:02:58]} 2. d4 {[%clk 0:03:00]}  d5 {[%clk 0:02:58]} 3. e5 {[%clk 0:03:00]}  Bf5 {[%clk 0:02:57]} 4. h4 {[%clk 0:03:01]}  h5 {[%clk 0:02:57]} 5. Bd3 {[%clk 0:02:56]}  Bxd3 {[%clk 0:02:53]} 6. Qxd3 {[%clk 0:02:57]}  Qa5+ {[%clk 0:02:53]} 7. b4 {[%clk 0:02:50]}  Qxb4+ {[%clk 0:02:10]} 8. Nd2 {[%clk 0:02:49]}  e6 {[%clk 0:02:07]} 9. Rb1 {[%clk 0:02:49]}  Qe7 {[%clk 0:02:07]} 10. Ngf3 {[%clk 0:02:40]}  b5 {[%clk 0:02:06]} 11. O-O {[%clk 0:02:34]}  Nh6 {[%clk 0:01:49]} 12. a4 {[%clk 0:02:31]}  a6 {[%clk 0:01:47]} 13. Nb3 {[%clk 0:02:25]}  Nf5 {[%clk 0:01:38]} 14. Bg5 {[%clk 0:02:15]}  Qc7 {[%clk 0:01:27]} 15. axb5 {[%clk 0:02:04]}  cxb5 {[%clk 0:00:48]} 16. Ra1 {[%clk 0:02:05]}  Bb4 {[%clk 0:00:31]} 17. c3 {[%clk 0:01:56]}  Qxc3 {[%clk 0:00:22]} 18. Qb1 {[%clk 0:01:56]}  Qc7 {[%clk 0:00:16]} 19. Rc1 {[%clk 0:01:56]}  Nc6 {[%clk 0:00:16]} 20. Qc2 {[%clk 0:01:44]}  Kd7 {[%clk 0:00:16]} 21. Bd2 {[%clk 0:01:40]}  Be7 {[%clk 0:00:15]} 22. Ng5 {[%clk 0:01:11]}  Rhf8 {[%clk 0:00:09]} 23. Qd1 {[%clk 0:01:01]}  g6 {[%clk 0:00:07]} 24. Na5 {[%clk 0:01:00]}  Nfxd4 {[%clk 0:00:04]} 25. Nf3 {[%clk 0:00:52]}  Qb6 {[%clk 0:00:02]} 26. Nxd4 {[%clk 0:00:46]}  Nxd4 {[%clk 0:00:02]} 27. Be3 {[%clk 0:00:47]}  Bc5 {[%clk 0:00:01]} 28. Rxc5 {[%clk 0:00:32]}  Qxc5 {[%clk 0:00:02]} 29. Bxd4 {[%clk 0:00:33]}  Qc7 {[%clk 0:00:01]} 30. Nb3 {[%clk 0:00:27]} 1-0


[Site "https://www.chess.com"]

[Event "Titled Tuesday Blitz May 03 Early 2022"]
[White "Molina, Roberto Junio Brito"]
[Black "Vovk, Orest"]
[WhiteFideId "2109450"]
[BlackFideId "14113490"]
[WhiteElo "2807"]
[BlackElo "2468"]
[Result "1/2-1/2"]
[Round "01"]
[TimeControl "180+1"]
[Date "2022.05.03"]
[WhiteClock "0:00:07"]
[BlackClock "0:00:11"]

1. d4 {[%clk 0:03:00]}  e5 {[%clk 0:02:52]} 2. dxe5 {[%clk 0:03:00]}  Nc6 {[%clk 0:02:52]} 3. Nf3 {[%clk 0:02:59]}  Qe7 {[%clk 0:02:52]} 4. e4 {[%clk 0:02:59]}  Nxe5 {[%clk 0:02:52]} 5. Nxe5 {[%clk 0:02:59]}  Qxe5 {[%clk 0:02:51]} 6. Bd3 {[%clk 0:02:58]}  Bb4+ {[%clk 0:02:51]} 7. c3 {[%clk 0:02:56]}  Bc5 {[%clk 0:02:51]} 8. O-O {[%clk 0:02:55]}  d6 {[%clk 0:02:51]} 9. Kh1 {[%clk 0:02:53]}  Nf6 {[%clk 0:02:50]} 10. f4 {[%clk 0:02:52]}  Qh5 {[%clk 0:02:50]} 11. Qxh5 {[%clk 0:02:52]}  Nxh5 {[%clk 0:02:51]} 12. Nd2 {[%clk 0:02:45]}  O-O {[%clk 0:02:47]} 13. b4 {[%clk 0:02:42]}  Be3 {[%clk 0:02:43]} 14. Nc4 {[%clk 0:02:43]}  Bxc1 {[%clk 0:02:41]} 15. Raxc1 {[%clk 0:02:43]}  Be6 {[%clk 0:02:34]} 16. Ne3 {[%clk 0:02:40]}  Bxa2 {[%clk 0:02:24]} 17. c4 {[%clk 0:02:40]}  a5 {[%clk 0:02:21]} 18. b5 {[%clk 0:02:36]}  a4 {[%clk 0:02:21]} 19. Nd5 {[%clk 0:02:29]}  c6 {[%clk 0:02:09]} 20. bxc6 {[%clk 0:01:59]}  bxc6 {[%clk 0:02:10]} 21. Ne7+ {[%clk 0:01:59]}  Kh8 {[%clk 0:02:09]} 22. Nxc6 {[%clk 0:02:00]}  Nf6 {[%clk 0:01:54]} 23. c5 {[%clk 0:01:46]}  dxc5 {[%clk 0:01:50]} 24. Rxc5 {[%clk 0:01:47]}  Rfc8 {[%clk 0:01:45]} 25. Rfc1 {[%clk 0:01:46]}  a3 {[%clk 0:01:33]} 26. e5 {[%clk 0:01:03]}  Nd5 {[%clk 0:01:22]} 27. Bf5 {[%clk 0:00:51]}  Rc7 {[%clk 0:01:11]} 28. Be4 {[%clk 0:00:43]}  Nxf4 {[%clk 0:01:07]} 29. Nb4 {[%clk 0:00:43]}  Rxc5 {[%clk 0:00:56]} 30. Rxc5 {[%clk 0:00:44]}  Rd8 {[%clk 0:00:44]} 31. Rc1 {[%clk 0:00:40]}  Bb3 {[%clk 0:00:35]} 32. g3 {[%clk 0:00:39]}  Ne2 {[%clk 0:00:30]} 33. Ra1 {[%clk 0:00:35]}  Rd1+ {[%clk 0:00:29]} 34. Rxd1 {[%clk 0:00:34]}  Bxd1 {[%clk 0:00:30]} 35. Bd5 {[%clk 0:00:33]}  Kg8 {[%clk 0:00:23]} 36. Kg2 {[%clk 0:00:28]}  Nd4 {[%clk 0:00:20]} 37. Kf2 {[%clk 0:00:25]}  Bb3 {[%clk 0:00:20]} 38. Bxb3 {[%clk 0:00:16]}  Nxb3 {[%clk 0:00:21]} 39. Ke3 {[%clk 0:00:16]}  Nc1 {[%clk 0:00:17]} 40. Nc2 {[%clk 0:00:16]}  Nb3 {[%clk 0:00:11]} 41. Nxa3 {[%clk 0:00:16]}  Kf8 {[%clk 0:00:12]} 42. Nc4 {[%clk 0:00:16]}  Ke7 {[%clk 0:00:12]} 43. Ke4 {[%clk 0:00:16]}  Nc5+ {[%clk 0:00:12]} 44. Kd5 {[%clk 0:00:16]}  Nd3 {[%clk 0:00:11]} 45. Nd6 {[%clk 0:00:16]}  g6 {[%clk 0:00:10]} 46. Ne4 {[%clk 0:00:15]}  Nb4+ {[%clk 0:00:09]} 47. Kc5 {[%clk 0:00:14]}  Nd3+ {[%clk 0:00:10]} 48. Kd4 {[%clk 0:00:14]}  Nb4 {[%clk 0:00:09]} 49. Ng5 {[%clk 0:00:14]}  h6 {[%clk 0:00:09]} 50. Nf3 {[%clk 0:00:13]}  f6 {[%clk 0:00:09]} 51. Ke4 {[%clk 0:00:14]}  fxe5 {[%clk 0:00:09]} 52. Nxe5 {[%clk 0:00:14]}  Kf6 {[%clk 0:00:08]} 53. Nf3 {[%clk 0:00:15]}  Nc6 {[%clk 0:00:08]} 54. h3 {[%clk 0:00:13]}  h5 {[%clk 0:00:08]} 55. h4 {[%clk 0:00:12]}  Ne7 {[%clk 0:00:08]} 56. Ng5 {[%clk 0:00:11]}  Nf5 {[%clk 0:00:09]} 57. Kf4 {[%clk 0:00:11]}  Nd4 {[%clk 0:00:09]} 58. Ne4+ {[%clk 0:00:12]}  Kf7 {[%clk 0:00:08]} 59. Nf2 {[%clk 0:00:13]}  Ne6+ {[%clk 0:00:08]} 60. Ke5 {[%clk 0:00:13]}  Ng7 {[%clk 0:00:08]} 61. Ne4 {[%clk 0:00:13]}  Nf5 {[%clk 0:00:09]} 62. Ng5+ {[%clk 0:00:13]}  Kg7 {[%clk 0:00:09]} 63. Kf4 {[%clk 0:00:14]}  Ne7 {[%clk 0:00:08]} 64. Ke5 {[%clk 0:00:13]}  Nc6+ {[%clk 0:00:07]} 65. Kd5 {[%clk 0:00:12]}  Ne7+ {[%clk 0:00:08]} 66. Ke4 {[%clk 0:00:13]}  Nc6 {[%clk 0:00:08]} 67. Kf4 {[%clk 0:00:13]}  Ne7 {[%clk 0:00:08]} 68. Ne6+ {[%clk 0:00:14]}  Kf6 {[%clk 0:00:08]} 69. Nc7 {[%clk 0:00:14]}  Kg7 {[%clk 0:00:08]} 70. Kg5 {[%clk 0:00:13]}  Nf5 {[%clk 0:00:07]} 71. Kf4 {[%clk 0:00:13]}  Ne7 {[%clk 0:00:07]} 72. Kf3 {[%clk 0:00:11]}  Kf6 {[%clk 0:00:07]} 73. Ke4 {[%clk 0:00:11]}  g5 {[%clk 0:00:08]} 74. Ne8+ {[%clk 0:00:09]}  Kf7 {[%clk 0:00:08]} 75. Nd6+ {[%clk 0:00:09]}  Ke6 {[%clk 0:00:09]} 76. Nc4 {[%clk 0:00:08]}  gxh4 {[%clk 0:00:09]} 77. gxh4 {[%clk 0:00:09]}  Ng6 {[%clk 0:00:09]} 78. Ne3 {[%clk 0:00:08]}  Nxh4 {[%clk 0:00:10]} 79. Kf4 {[%clk 0:00:08]}  Ng6+ {[%clk 0:00:10]} 80. Kg5 {[%clk 0:00:09]}  h4 {[%clk 0:00:11]} 81. Kg4 {[%clk 0:00:08]}  Kf6 {[%clk 0:00:10]} 82. Nf5 {[%clk 0:00:07]}  Kf7 {[%clk 0:00:10]} 83. Nh6+ {[%clk 0:00:07]}  Kf6 {[%clk 0:00:10]} 84. Nf5 {[%clk 0:00:07]}  Ne5+ {[%clk 0:00:11]} 85. Kxh4 {[%clk 0:00:07]} 1/2-1/2


[Site "https://www.chess.com"]